fUSD/lending_fUSD_20240222
["ID","MTS","AMOUNT","RATE_DAILY","PERIOD"]
[314875598,1708607432357,-1329.87834143,0.00027199,2]
[314875599,1708607432368,-830.57540162,0.00027199,2]
[314875600,1708607432405,-49239.79701559,0.00027199,2]
[314875601,1708607432415,-7886.73275056,0.000272,2]
[314875602,1708607432427,-24748.49188385,0.00028,2]
[314875605,1708607432442,-13104.2157734,0.00028,2]
[314875665,1708607437996,-567.99743166,0.00028,2]
[314875666,1708607438047,-882.75490315,0.00028,2]
[314875667,1708607438060,-1205.1467572,0.00028,2]
[314875668,1708607438071,-284.51111494,0.00028,2]
[314875669,1708607438131,-2231.15598418,0.00028,2]
[314875670,1708607438144,-3152.32847374,0.00028,2]
[314875671,1708607438174,-19552.43314846,0.00028,2]
[314875672,1708607438186,-2491.37892,0.00028,2]
[314875673,1708607438197,-1007.99999868,0.00028,2]
[314875674,1708607438211,-5165.89419258,0.00028,2]
[314875675,1708607438228,-2978.06845158,0.00028,2]
[314875676,1708607438254,-4824.90955406,0.00028,2]
[314875677,1708607438267,-504.21309168,0.00028,2]
[314875678,1708607438279,-2382.31519017,0.00028,2]
[314875679,1708607438298,-833.06160686,0.00028,2]
[314875680,1708607438311,-4979.28504567,0.00028,2]
[314875681,1708607438321,-499.99,0.00028,2]
[314875682,1708607438330,-850.0,0.00029,3]
[314875683,1708607438341,-300.0,0.00029,2]
[314875684,1708607438353,-181.67,0.0002929,10]
[314875686,1708607438362,-1488.08,0.00029321,2]
[314875688,1708607438373,-250.0,0.00029329,2]
[314875690,1708607438384,-821.86,0.00029333,2]
[314875692,1708607438393,-360.0,0.0002937,2]
[314875694,1708607438402,-196.42,0.00029395,2]
[314875696,1708607438411,-2000.0,0.00029403,2]
[314875698,1708607438421,-173.33,0.00029426,2]
[314875700,1708607438430,-158.24385808,0.00029857,2]
[314875701,1708607438440,-19141.51334282,0.000299,2]
[314875703,1708607438449,-150.0,0.0003,2]
[314875705,1708607438459,-1229.54841178,0.0003,2]
[314875706,1708607438468,-2624.5196619,0.0003,2]
[314875707,1708607438476,-208.0,0.00030043,9]
[314875708,1708607438485,-250.0,0.00030048,2]
[314875709,1708607438494,-11042.07,0.00030094,2]
[314875710,1708607438503,-150.0,0.000302,2]
[314875711,1708607438513,-158.51,0.00030222,2]
[314875712,1708607438522,-908.51,0.00030244,2]
[314875713,1708607438531,-640.0,0.00030303,2]
[314875714,1708607438540,-158.17,0.00030348,2]
[314875715,1708607438549,-158.21,0.00030353,2]
[314875716,1708607438558,-150.0,0.000304,2]
[314875717,1708607438567,-176.54,0.00030432,2]
[314875718,1708607438577,-152.61,0.00030466,2]
[314875719,1708607438586,-158.17,0.00030527,2]
[314875720,1708607438595,-150.0,0.000306,2]
[314875721,1708607438604,-158.17,0.00030705,2]
[314875722,1708607438614,-181.67,0.00030725,10]
[314875723,1708607438623,-150.0,0.000308,2]
[314875724,1708607438634,-158.17,0.00030884,2]
[314875725,1708607438644,-697.71398692,0.00030976,2]
[314875726,1708607438658,-124.14601308,0.00030976,2]
[314875727,1708607438667,-250.0,0.00031,2]
[314875728,1708607438677,-900.0,0.00031,3]
[314875729,1708607438687,-158.17,0.00031062,2]
[314875730,1708607438696,-158.17,0.00031241,2]
[314875731,1708607438706,-152.61,0.00031259,2]
[314875732,1708607438717,-164.1,0.0003133,2]
[314875733,1708607438728,-158.17,0.00031419,2]
[314875734,1708607438739,-158.17,0.00031598,2]
[314875735,1708607438748,-8560.04894077,0.00031704,7]
[314875736,1708607439515,-3530.43999999,0.00031704,7]
[314875737,1708607439528,-552.9730757,0.00031704,7]
[314875738,1708607439540,-323.43273298,0.00031704,7]
[314875739,1708607440629,-3094.39863243,0.00031704,7]
[314875740,1708607440642,-4128.63986883,0.00031704,7]
[314875741,1708607440655,-276.91951802,0.00031704,7]
[314875742,1708607440667,-2370.9047406,0.00031704,7]
[314875743,1708607440679,-11054.68685511,0.00031704,7]
[314875744,1708607440691,-28705.62266585,0.00031704,7]
[314875745,1708607440707,-7050.0,0.00031704,7]
[314875746,1708607440719,-1029.6958,0.00031704,7]
[314875747,1708607440857,-706.55399182,0.00031704,7]
[314875748,1708607440869,-1046.31236572,0.00031704,7]
[314875749,1708607441366,-127569.37081218,0.00031704,7]
[314875750,1708607441376,-150.0,0.00031766,2]
[314875751,1708607441387,-158.17,0.00031776,2]
[314875752,1708607441396,-500.0,0.00031798,2]
[314875753,1708607441405,-1000.0,0.00031901,2]
[314875754,1708607441416,-158.17,0.00031955,2]
[314875755,1708607441426,-177.23721187,0.00032,12]
[314875756,1708607441436,-5000.0,0.00032,3]
[314875757,1708607441446,-664.4142491,0.00032,33]
[314875758,1708607441455,-158.46349329,0.00032013,3]
[314875759,1708607441465,-152.61,0.00032053,2]
[314875760,1708607441474,-158.17,0.00032134,2]
[314875761,1708607441484,-181.67,0.00032161,10]
[314875762,1708607441494,-150.0,0.00032294,2]
[314875763,1708607441503,-158.17,0.00032312,2]
[314875764,1708607441514,-495.45,0.00032328,2]
[314875765,1708607441523,-153.98,0.00032368,2]
[314875766,1708607441532,-150.0,0.00032371,2]
[314875767,1708607441542,-150.0,0.00032439,2]
[314875768,1708607441551,-2013.20138461,0.0003245,2]
[314875773,1708607441818,-986.79861539,0.0003245,2]
[314875774,1708607441827,-158.17,0.00032491,2]
[314875775,1708607441837,-2250.0,0.000325,2]
[314875776,1708607441847,-150.0,0.00032513,2]
[314875777,1708607441857,-2922.86707793,0.000326,3]
[314875783,1708607443364,-356.58500165,0.00029573,2]
[314875784,1708607443422,-332.73499835,0.00029573,2]
[314875785,1708607443432,-653.33327656,0.00031837,2]
[314875786,1708607443445,-35.98672344,0.00031837,2]
[314875787,1708607443454,-6177.29810879,0.000326,3]
[314875788,1708607443466,-2190.8647781,0.000326,3]
[314875789,1708607443538,-34889.81076108,0.000326,3]
[314875790,1708607443598,-1295.87510164,0.000326,3]
[314875799,1708607446267,-2523.28417246,0.000326,3]
[314875800,1708607446278,-821.86,0.0003262,2]
[314875801,1708607446287,-158.17,0.00032669,2]
[314875802,1708607446298,-538.04421889,0.00032675,2]
[314875803,1708607446308,-151.0,0.00032735,120]
[314875804,1708607446318,-220.43964874,0.00032764,2]
[314875805,1708607446328,-5430.69968049,0.00032774,2]
[314875806,1708607446341,-675.20644512,0.00032774,2]
[314875807,1708607446356,-8088.30950269,0.00032774,2]
[314875824,1708607446739,-127052.70763838,0.00032774,2]
[314875827,1708607446764,-483.87719183,0.00032774,2]
[314875830,1708607446776,-2571.25,0.00032774,2]
[314875832,1708607446789,-1088.0,0.00032774,2]
[314875916,1708608411154,-221.69763127,0.00029509,2]
[314875944,1708608632283,-1212.20411955,0.00028975,2]
[314875945,1708608632293,-17.96885327,0.00028975,2]
[314875946,1708608634264,-492.96723559,0.00028975,2]
[314875947,1708608634273,-2154.87179081,0.00028975,2]
[314875948,1708608634283,-615.42920357,0.00028976,2]
[314875949,1708608634293,-702.32,0.00028978,2]
[314875950,1708608634303,-300.0,0.00029508,2]
[314875951,1708608634312,-150.0,0.00029508,2]
[314875952,1708608634322,-150.0,0.00029508,2]
[314875953,1708608634331,-3775.69583886,0.00029509,2]
[314875954,1708608634344,-1101.46347957,0.00029509,2]
[314875955,1708608634354,-208.0,0.00030323,2]
[314875956,1708608634363,-1500.0,0.00030617,2]
[314875957,1708608634372,-550.63,0.00030882,2]
[314875958,1708608634383,-500.0,0.00030892,2]
[314875959,1708608634392,-15591.63,0.00030895,2]
[314875960,1708608634402,-2705.0,0.00030917,2]
[314875961,1708608634411,-1197.01,0.00030917,2]
[314875962,1708608634421,-503.86,0.00030935,2]
[314875963,1708608634431,-499.99,0.00030935,2]
[314875964,1708608634441,-250.0,0.00030938,2]
[314875965,1708608634450,-2000.0,0.00031003,2]
[314875966,1708608634460,-1500.0,0.00031085,2]
[314875967,1708608634469,-503.86,0.00031113,2]
[314875968,1708608634480,-200.0,0.0003112,2]
[314875969,1708608634489,-196.42,0.00031154,2]
[314875970,1708608634499,-250.0,0.00031176,2]
[314875971,1708608634509,-288.0,0.00031188,2]
[314875972,1708608634518,-170.0,0.00031214,2]
[314875973,1708608634527,-42153.51095997,0.00031214,2]
[314875974,1708608634562,-1647.45574017,0.00031214,2]
[314875975,1708608634574,-401.82437314,0.00031214,2]
[314875976,1708608634586,-337.36422266,0.00031214,2]
[314875977,1708608634597,-2571.98664,0.00031214,2]
[314875978,1708608634609,-590.3,0.00031214,2]
[314875979,1708608634631,-2693.03272659,0.00031214,2]
[314875982,1708608638186,-336.02735774,0.00031214,2]
[314876003,1708608638731,-165.08,0.00031139,2]
[314876005,1708608638741,-58029.4305757,0.00031214,2]
[314876008,1708608638761,-295.3,0.00031214,2]
[314876010,1708608638773,-2617.87068228,0.00031214,2]
[314876016,1708608638904,-329.60556228,0.00028875,2]
[314876017,1708608638914,-620.32554374,0.00031214,2]
[314876019,1708608640830,-84045.80204865,0.00031214,2]
[314876020,1708608640840,-15661.44,0.00031216,2]
[314876021,1708608640850,-1483.03,0.00031223,2]
[314876022,1708608640860,-702.32,0.00031242,2]
[314876023,1708608640869,-1500.0,0.00031251,2]
[314876024,1708608640879,-500.0,0.00031253,2]
[314876025,1708608640891,-200.0,0.00031259,2]
[314876026,1708608640902,-503.86,0.00031292,2]
[314876027,1708608640912,-170.76,0.0003133,2]
[314876028,1708608640921,-163.49,0.0003139,2]
[314876029,1708608640930,-503.86,0.00031471,2]
[314876030,1708608640940,-201.44,0.00031495,2]
[314876031,1708608640951,-158.24385808,0.00031553,2]
[314876032,1708608640960,-302.4026063,0.00031579,2]
[314876033,1708608640970,-201.44,0.00031582,2]
[314876034,1708608640980,-712.0,0.00031593,2]
[314876035,1708608640989,-309.81078788,0.0003164,4]
[314876036,1708608640999,-503.86,0.0003165,2]
[314876037,1708608641008,-300.0,0.00031653,2]
[314876038,1708608641018,-201.44,0.00031668,2]
[314876039,1708608641027,-757.09,0.00031681,2]
[314876040,1708608641036,-201.44,0.00031755,2]
[314876041,1708608641046,-174.25,0.00031826,2]
[314876042,1708608641083,-503.86,0.00031828,2]
[314876043,1708608641092,-201.44,0.00031841,2]
[314876044,1708608641102,-150.0,0.00031861,2]
[314876045,1708608641111,-153.47,0.00031873,2]
[314876046,1708608641121,-150.0,0.00031883,2]
[314876047,1708608641130,-201.44,0.00031927,2]
[314876048,1708608641142,-2004.85,0.00032,2]
[314876049,1708608641152,-245.32994431,0.00032005,2]
[314876050,1708608641162,-503.86,0.00032007,2]
[314876051,1708608641171,-158.4634933,0.00032013,3]
[314876052,1708608641181,-150.0,0.00032013,2]
[314876053,1708608641190,-201.44,0.00032014,2]
[314876054,1708608641199,-1500.0,0.00032065,2]
[314876055,1708608641208,-150.0,0.00032086,2]
[314876056,1708608641218,-150.0,0.00032093,2]
[314876057,1708608641227,-201.44,0.000321,2]
[314876058,1708608641237,-150.0,0.00032103,2]
[314876059,1708608641246,-300.0,0.00032119,2]
[314876060,1708608641256,-503.86,0.00032186,2]
[314876061,1708608641265,-201.44,0.00032186,2]
[314876062,1708608641275,-150.0,0.00032206,2]
[314876063,1708608641285,-1363.3060295,0.00032209,2]
[314876064,1708608641295,-152.29,0.00032265,2]
[314876065,1708608641305,-201.44,0.00032273,2]
[314876066,1708608641314,-150.0,0.00032299,2]
[314876067,1708608641323,-150.0,0.0003233,2]
[314876068,1708608641332,-1116.17345436,0.00032345,2]
[314876069,1708608641341,-201.44,0.00032359,2]
[314876070,1708608641350,-503.86,0.00032365,2]
[314876071,1708608641359,-170.76,0.00032374,2]
[314876072,1708608641369,-150.0,0.00032382,2]
[314876073,1708608641378,-150.0,0.00032408,2]
[314876074,1708608641390,-201.44,0.00032446,2]
[314876075,1708608641399,-5000.0,0.00032446,3]
[314876076,1708608641408,-150.0,0.0003246,2]
[314876077,1708608641418,-150.0,0.00032464,2]
[314876078,1708608641427,-204.39955188,0.00032472,4]
[314876079,1708608641437,-289.8076,0.00032474,2]
[314876080,1708608641447,-1509.4804,0.00032474,2]
[314876081,1708608641456,-3685.1487,0.00032474,2]
[314876082,1708608641466,-150.0,0.00032478,2]
[314876083,1708608641475,-300.0,0.00032487,2]
[314876084,1708608641484,-3008.01222437,0.000325,3]
[314876085,1708608641493,-6677.49016008,0.00032503,2]
[314876086,1708608641503,-1043.11588848,0.00032503,2]
[314876087,1708608641512,-416.3773927,0.00032503,2]
[314876088,1708608641520,-433.50865675,0.00032503,2]
[314876089,1708608641530,-186.08750365,0.00032503,2]
[314876090,1708608641538,-153.47,0.00032511,2]
[314876091,1708608641548,-1379.2061292,0.00032518,2]
[314876092,1708608641557,-201.44,0.00032532,2]
[314876093,1708608641566,-150.0,0.00032539,2]
[314876094,1708608641576,-503.86,0.00032543,2]
[314876095,1708608641585,-800.0,0.00032548,2]
[314876096,1708608641594,-1197.01,0.00032561,2]
[314876097,1708608641603,-1000.0,0.00032573,2]
[314876098,1708608641613,-1559.95669407,0.00032573,4]
[314876099,1708608641623,-4895.11962295,0.00032573,4]
[314876100,1708608641634,-100000.0,0.00032574,2]
[314876101,1708608641643,-38678.5818,0.00032574,2]
[314876102,1708608641653,-167.12153745,0.00032574,6]
[314876103,1708608641662,-538.04421888,0.00032574,2]
[314876104,1708608641672,-150.0,0.00032578,2]
[314876105,1708608641681,-150.0,0.0003259,2]
[314876106,1708608641690,-168.73903996,0.000326,2]
[314876107,1708608641700,-1986221.29201482,0.000326,5]
[314876108,1708608641713,-375.99769908,0.000326,5]
[314876109,1708608641743,-800.0,0.000326,5]
[314876110,1708608641755,-345.99764997,0.000326,5]
[314876189,1708608643246,-150.0,0.00031068,2]
[314876190,1708608643257,-150.0,0.00031172,2]
[314876191,1708608643266,-29.805,0.00031241,2]
[314876192,1708608643278,-120.195,0.00031241,2]
[314876193,1708608643287,-150.0,0.00031845,2]
[314876194,1708608643296,-84.077,0.00032031,2]
[314876195,1708608645298,-65.923,0.00032031,2]
[314876196,1708608645308,-150.0,0.0003206,2]
[314876197,1708608645316,-150.0,0.00032066,2]
[314876198,1708608645325,-150.0,0.00032085,2]
[314876199,1708608645335,-150.0,0.00032097,2]
[314876200,1708608645344,-150.0,0.00032288,2]
[314876201,1708608645354,-150.0,0.00032481,2]
[314876202,1708608645364,-831.94042377,0.000326,5]
[314876203,1708608645377,-1742.19421235,0.000326,5]
[314876204,1708608645432,-1476.5,0.000326,5]
[314876223,1708608649697,-738.90000001,0.00031577,4]
[314876224,1708608649709,-306.21779093,0.00031577,4]
[314876225,1708608649819,-1850.10342512,0.00031577,4]
[314876226,1708608649828,-4825.17945187,0.00032503,2]
[314876227,1708608649837,-339.43278789,0.000326,5]
[314876228,1708608649848,-33038.38545101,0.000326,5]
[314876229,1708608649859,-1972.29392483,0.000326,5]
[314876230,1708608653874,-550.51694946,0.00029509,2]
[314876231,1708608653933,-373.02741921,0.00029509,2]
[314876232,1708608653995,-309.55822901,0.00029509,2]
[314876233,1708608654057,-3644.05672075,0.00029509,2]
[314876234,1708608654067,-124.4584681,0.00032502,4]
[314876235,1708608654094,-469.20775659,0.00032502,4]
[314876236,1708608654103,-475.3658868,0.00032599,4]
[314876237,1708608654113,-540.92635661,0.000326,5]
[314876244,1708608682622,750.0,0.00025,3]
[314876245,1708608731990,1150.0,0.00025,2]
[314876246,1708608732016,1900.0,0.00025,2]
[314876247,1708608732040,1827.15931843,0.00025,2]
[314876248,1708608747993,72.84068157,0.00025,2]
[314876249,1708608748019,900.0,0.00025,2]
[314876250,1708608748044,3904.31863686,0.00025,2]
[314876251,1708609339670,-425.78007405,0.00026899,2]
[314876252,1708609339692,-154.2782288,0.000269,2]
[314876253,1708609339714,-1000.0,0.00026998,2]
[314876255,1708609584719,425.78007405,0.00026998,2]
[314876256,1708609643157,248.89210399,0.00026998,2]
[314876269,1708609831433,-2154.87179081,0.00026999,2]
[314876270,1708609831444,-800.0,0.00027,3]
[314876271,1708609831454,-208.0,0.00027323,2]
[314876272,1708609831464,-221.83141858,0.00027814,2]
[314876273,1708609831473,-698.68,0.00027815,2]
[314876274,1708609831484,-154.27822877,0.000279,2]
[314876275,1708609831494,-274.72515476,0.00028,2]
[314876276,1708609831503,-1664.01358971,0.000283,2]
[314876277,1708609831515,-777.57417191,0.000283,2]
[314876278,1708609831525,-154.27822877,0.00028713,2]
[314876279,1708609831534,-154.27822877,0.00029525,2]
[314876280,1708609831544,-250.0,0.00029654,2]
[314876281,1708609831554,-640.95,0.00029698,2]
[314876282,1708609831564,-499.99,0.00029709,2]
[314876283,1708609831574,-868.9,0.00029722,2]
[314876284,1708609831583,-150.0,0.00029731,2]
[314876285,1708609831594,-2705.0,0.00029732,2]
[314876286,1708609831603,-208.99361497,0.00029734,2]
[314876287,1708609831615,-3463.93638503,0.00029734,2]
[314876288,1708609831627,-269.04533093,0.00029741,2]
[314876289,1708609831638,-1730.95466907,0.00029741,2]
[314876290,1708609831647,-7776.57,0.00029756,2]
[314876291,1708609831658,-165.08,0.00029762,2]
[314876292,1708609831668,-250.0,0.00029789,2]
[314876293,1708609831677,-150.0,0.00029816,2]
[314876294,1708609831687,-310.82,0.00029824,2]
[314876295,1708609831696,-1235.85,0.00029833,2]
[314876296,1708609831705,-200.0,0.0002984,2]
[314876297,1708609831714,-230.4,0.00029853,2]
[314876298,1708609831723,-516.64,0.0002986,2]
[314876299,1708609831732,-158.11,0.00029907,2]
[314876300,1708609831742,-193.58,0.0002995,2]
[314876301,1708609831751,-182.68,0.00029974,2]
[314876302,1708609831760,-310.82,0.00029996,2]
[314876303,1708609831770,-158.11,0.00030037,2]
[314876304,1708609831780,-1449.35,0.00030072,2]
[314876305,1708609831789,-698.68,0.00030079,2]
[314876306,1708609831799,-193.58,0.00030108,2]
[314876307,1708609831807,-158.11,0.00030166,2]
[314876308,1708609831817,-310.82,0.00030168,2]
[314876309,1708609831826,-193.58,0.00030266,2]
[314876310,1708609831834,-158.11,0.00030296,2]
[314876311,1708609831843,-154.27822877,0.00030338,2]
[314876312,1708609831853,-310.82,0.0003034,2]
[314876313,1708609831861,-193.58,0.00030423,2]
[314876314,1708609831871,-158.11,0.00030426,2]
[314876315,1708609831880,-310.82,0.00030513,2]
[314876316,1708609831889,-158.11,0.00030556,2]
[314876317,1708609831898,-193.58,0.00030581,2]
[314876318,1708609831907,-385.66760951,0.0003066,2]
[314876319,1708609831916,-310.82,0.00030685,2]
[314876320,1708609831925,-158.11,0.00030686,2]
[314876321,1708609831935,-193.58,0.00030739,2]
[314876322,1708609831945,-769.6,0.00030765,2]
[314876323,1708609831954,-239.48423977,0.00030802,2]
[314876324,1708609831963,-158.11,0.00030816,2]
[314876325,1708609831973,-310.82,0.00030857,2]
[314876326,1708609831983,-193.58,0.00030896,2]
[314876327,1708609831994,-158.11,0.00030946,2]
[314876328,1708609832003,-208.0,0.00030954,8]
[314876329,1708609832012,-234.43357895,0.00031015,4]
[314876330,1708609832021,-300.0,0.00031016,2]
[314876331,1708609832030,-310.82,0.0003103,2]
[314876332,1708609832040,-193.58,0.00031054,2]
[314876333,1708609832050,-158.11,0.00031075,2]
[314876334,1708609832060,-1000.0,0.00031118,2]
[314876335,1708609832069,-1350.92,0.00031119,2]
[314876336,1708609832079,-150.0,0.00031137,2]
[314876337,1708609832088,-154.27822877,0.00031151,2]
[314876338,1708609832099,-300.0,0.00031152,2]
[314876339,1708609832108,-157.49,0.00031194,2]
[314876340,1708609832120,-310.82,0.00031202,2]
[314876341,1708609832129,-158.11,0.00031205,2]
[314876342,1708609832139,-193.58,0.00031212,2]
[314876343,1708609832148,-164.1,0.00031272,2]
[314876344,1708609832158,-10000.0,0.00031328,2]
[314876345,1708609832167,-158.11,0.00031335,2]
[314876346,1708609832176,-868.9,0.00031366,2]
[314876347,1708609832186,-193.58,0.00031369,2]
[314876348,1708609832197,-310.82,0.00031374,2]
[314876349,1708609832207,-158.11,0.00031465,2]
[314876350,1708609832217,-193.58,0.00031527,2]
[314876351,1708609832226,-2453.5621,0.00031607,2]
[314876352,1708609832237,-30760.54093274,0.00031607,2]
[314876353,1708609832289,-881.51901419,0.00031607,2]
[314876354,1708609832300,-1240.0222577,0.00031607,2]
[314876355,1708609832315,-4533.39012725,0.00031607,2]
[314876356,1708609833947,-248.89210399,0.00027813,2]
[314876357,1708609833958,-4087.89676812,0.00031607,2]
[314876358,1708609833967,-253.1296,0.00031607,2]
[314876359,1708609833976,-518.66512789,0.00031607,2]
[314876360,1708609833996,-2983.90038546,0.00031607,2]
[314876361,1708609834007,-1238.33836806,0.00031607,2]
[314876362,1708609834018,-444.18270766,0.00031607,2]
[314876363,1708609834029,-5101.50359999,0.00031607,2]
[314876364,1708609834100,-16481.29661094,0.00031607,2]
[314876365,1708609834110,-748.82617739,0.00031609,5]
[314876366,1708609834121,-220.56668333,0.00031609,2]
[314876367,1708609834132,-497.34,0.00031644,2]
[314876368,1708609834142,-1320.6,0.00031644,2]
[314876369,1708609834153,-402.94,0.00031656,2]
[314876370,1708609834162,-193.58,0.00031685,2]
[314876371,1708609834171,-1500.0,0.00031696,2]
[314876372,1708609834182,-14409.76910413,0.00031707,4]
[314876381,1708609834550,-20408.16,0.00031707,4]
[314876382,1708609834562,-53956.84049544,0.00031707,4]
[314876383,1708609834573,-1008.12769822,0.00031707,4]
[314876389,1708609839327,-271746.25648723,0.00031707,4]
[314876390,1708609839337,-150.0,0.00031762,2]
[314876391,1708609839348,-39190.83978,0.000318,2]
[314876392,1708609839358,-402.94,0.00031822,2]
[314876393,1708609839368,-193.58,0.00031842,2]
[314876394,1708609839381,-150.0,0.0003188,2]
[314876395,1708609839391,-150.0,0.00031906,2]
[314876396,1708609839401,-150.0,0.00031911,2]
[314876397,1708609839411,-154.27822877,0.00031963,2]
[314876398,1708609839421,-300.0,0.00031965,2]
[314876399,1708609839431,-402.94,0.00031989,2]
[314876400,1708609839441,-150.0,0.00031996,2]
[314876401,1708609839450,-193.58,0.00032,2]
[314876402,1708609839460,-150.0,0.00032032,2]
[314876403,1708609839470,-748.82617735,0.00032044,5]
[314876404,1708609839479,-150.0,0.00032088,2]
[314876405,1708609839489,-150.0,0.00032092,2]
[314876406,1708609839499,-150.0,0.00032109,2]
[314876407,1708609839508,-150.0,0.00032109,2]
[314876408,1708609839518,-402.94,0.00032155,2]
[314876409,1708609839529,-193.58,0.00032157,2]
[314876410,1708609839538,-1500.0,0.00032181,2]
[314876411,1708609839548,-150.0,0.00032182,2]
[314876412,1708609839558,-1500.0,0.00032183,2]
[314876413,1708609839568,-150.0,0.0003224,2]
[314876414,1708609839578,-150.0,0.00032314,2]
[314876415,1708609839589,-193.58,0.00032315,2]
[314876416,1708609839600,-402.94,0.00032322,2]
[314876417,1708609839609,-150.0,0.00032341,2]
[314876418,1708609839619,-698.68,0.00032343,2]
[314876419,1708609839630,-150.0,0.00032347,2]
[314876420,1708609839639,-1498.0063114,0.0003236,2]
[314876421,1708609839649,-150.0,0.00032369,2]
[314876422,1708609839658,-189.77979257,0.0003239,2]
[314876423,1708609839668,-10000.0,0.00032395,2]
[314876424,1708609839680,-1000.0,0.000324,2]
[314876425,1708609839690,-912.447,0.000324,2]
[314876426,1708609839701,-245000.0,0.000324,2]
[314876427,1708609839711,-150.0,0.0003244,2]
[314876428,1708609839721,-300.0,0.00032456,2]
[314876429,1708609839736,-150.0,0.00032459,2]
[314876430,1708609839745,-193.58,0.00032473,2]
[314876431,1708609839755,-748.82617735,0.00032478,6]
[314876432,1708609839765,-402.94,0.00032489,2]
[314876433,1708609839774,-30182.1659,0.000325,2]
[314876434,1708609839784,-525.7,0.000325,2]
[314876435,1708609839794,-100000.0,0.000325,2]
[314876436,1708609839803,-433.19647472,0.000325,2]
[314876437,1708609839813,-1255.40848476,0.000325,4]
[314876438,1708609839823,-200000.0,0.000325,2]
[314876439,1708609839833,-200.0,0.00032514,2]
[314876440,1708609839842,-800.0,0.00032514,2]
[314876441,1708609839851,-150.0,0.00032514,2]
[314876442,1708609839861,-150.0,0.00032514,2]
[314876443,1708609839871,-150.0,0.00032553,2]
[314876444,1708609839883,-150.0,0.00032555,2]
[314876446,1708609839892,-157.49,0.00032564,2]
[314876447,1708609839902,-45402.03193267,0.00032573,4]
[314876448,1708609839911,-211.0,0.00032574,2]
[314876449,1708609839921,-150.0,0.00032574,2]
[314876450,1708609839931,-351.69869735,0.00032598,4]
[314876451,1708609839941,-1232.401862,0.000326,2]
[314876452,1708609839951,-342459.74972693,0.000326,5]
[314876453,1708609839961,-160.52876664,0.000326,5]
[314876454,1708609839970,-200.0,0.000326,2]
[314876455,1708609839980,-3000.0,0.000326,2]
[314876456,1708609839990,-200.0,0.000326,2]
[314876457,1708609839999,-14406.6953312,0.00032602,2]
[314876458,1708609840009,-150.0,0.00032624,2]
[314876459,1708609840019,-193.58,0.0003263,2]
[314876460,1708609840029,-402.94,0.00032655,2]
[314876461,1708609840038,-150.0,0.00032667,2]
[314876462,1708609840048,-5000.0,0.00032669,3]
[314876463,1708609840058,-876.93952673,0.00032673,4]
[314876464,1708609840068,-151.0,0.00032677,2]
[314876465,1708609840077,-150.0,0.00032681,2]
[314876466,1708609840087,-152.0,0.00032683,3]
[314876467,1708609840097,-300.0,0.0003269,2]
[314876468,1708609840107,-1255.40848475,0.00032698,4]
[314876469,1708609840118,-446.15,0.00032699,2]
[314876470,1708609840129,-560.0,0.000327,2]
[314876471,1708609840139,-300.0,0.00032702,2]
[314876472,1708609840148,-210.0,0.00032704,3]
[314876473,1708609840158,-1500.0,0.00032714,2]
[314876474,1708609840168,-150.0,0.00032725,2]
[314876475,1708609840177,-300.0,0.00032726,2]
[314876476,1708609840189,-150.0,0.00032728,2]
[314876477,1708609840198,-800.0,0.00032742,2]